bitfinex/quotes_ETHUSD_20250815
["timestamp","ask_amount","ask_price","bid_price","bid_amount"]
[1755240651807,0.58121601,4657.6,4656.2,2.14762858]
[1755240651990,0.1072,4656.0,4655.5,0.57147996]
[1755240652193,0.1072,4656.0,4655.7,2.14787298]
[1755240652407,0.1072,4656.0,4655.8,0.4638]
[1755240652605,3.305,4656.3,4655.8,0.4638]
[1755240652918,3.305,4656.3,4655.9,0.4638]
[1755240653406,3.305,4656.3,4656.0,0.4638]
[1755240653596,3.305,4656.3,4656.1,0.4638]
[1755240653791,3.305,4656.3,4655.9,0.4694]
[1755240654094,2.14749666,4656.6,4656.2,0.4638]
[1755240654287,0.1072,4656.3,4656.0,0.4638]
[1755240654601,0.1072,4656.0,4655.9,2.14779431]
[1755240654804,0.1072,4656.0,4655.9,2.87891374]
[1755240655002,0.1072,4656.0,4655.9,3.34271374]
[1755240655207,0.1072,4656.0,4655.6,0.4638]
[1755240655503,0.1072,4656.0,4655.7,0.4638]
[1755240655708,0.1072,4655.8,4655.7,2.14785952]
[1755240655909,0.1072,4655.8,4655.7,2.61165952]
[1755240656730,0.1072,4655.8,4655.2,0.001]
[1755240656932,0.1072,4655.5,4655.2,0.001]
[1755240657232,0.1072,4655.5,4655.3,2.14808927]
[1755240657397,0.1072,4655.5,4655.4,2.61184313]
[1755240657592,0.1072,4655.5,4655.4,0.4638]
[1755240657801,0.1072,4655.5,4655.2,0.001]
[1755240658535,0.1072,4655.5,4655.2,0.4648]
[1755240660436,0.1072,4655.5,4655.2,0.001]
[1755240660636,0.1072,4655.5,4655.3,0.4638]
[1755240660637,0.6072,4655.5,4655.3,0.4638]
[1755240660832,0.6072,4655.5,4655.4,0.4638]
[1755240662600,0.6072,4655.5,4655.2,0.001]
[1755240662906,3.305,4655.4,4655.3,2.61187326]
[1755240663112,3.305,4655.4,4655.3,0.4638]
[1755240663307,0.6072,4655.5,4655.3,0.4638]
[1755240663520,3.305,4655.4,4655.3,3.08128927]
[1755240664039,3.305,4655.4,4655.2,0.001]
[1755240664222,3.305,4655.4,4655.3,2.61188927]
[1755240664404,3.9122,4655.5,4655.4,2.14804313]
[1755240664602,3.9122,4655.5,4655.3,0.4638]
[1755240664799,3.9122,4655.5,4655.2,0.001]
[1755240664998,0.6072,4655.5,4655.4,2.14804313]
[1755240665235,3.9122,4655.5,4655.4,2.5906829]
[1755240665428,3.9122,4655.5,4655.4,3.5238829]
[1755240665734,3.9122,4655.5,4655.4,0.90643977]
[1755240665924,3.9122,4655.5,4655.2,2.14908973]
[1755240666326,3.9122,4655.5,4655.3,2.14806176]
[1755240666531,3.9122,4655.5,4655.2,2.14912788]
[1755240666711,3.9122,4655.5,4655.2,2.61292788]
[1755240667218,3.9122,4655.5,4655.2,0.001]
[1755240667417,0.4789,4655.4,4655.2,0.001]
[1755240667608,3.9122,4655.5,4655.2,0.001]
[1755240668342,4.3911,4655.5,4655.2,0.001]
[1755240668723,3.9122,4655.5,4655.2,0.001]
[1755240668922,3.9122,4655.5,4655.2,2.14912638]
[1755240669233,3.9122,4655.5,4655.2,0.001]
[1755240669632,3.305,4655.4,4655.3,2.14808927]
[1755240670340,3.305,4655.4,4655.3,0.4638]
[1755240670734,0.6072,4655.5,4655.3,0.4638]
[1755240670936,0.6072,4655.5,4655.3,2.14808927]
[1755240671131,3.9122,4655.5,4655.2,0.001]
[1755240671331,0.4789,4655.4,4655.2,0.001]
[1755240671922,3.9122,4655.5,4655.2,0.001]
[1755240672274,0.4789,4655.3,4655.2,0.001]
[1755240674467,3.9122,4655.5,4655.2,0.001]
[1755240675623,0.6072,4655.5,4655.2,2.14910312]
[1755240675829,0.1072,4655.3,4655.2,2.14910312]
[1755240676060,0.1072,4655.3,4655.2,0.001]
[1755240676421,0.1072,4655.3,4655.2,2.61293541]
[1755240678261,0.1072,4655.3,4655.2,3.08914946]
[1755240678457,0.5,4655.5,4655.4,2.14804313]
[1755240678955,0.5,4655.5,4655.4,3.16184313]
[1755240680740,0.5,4655.5,4655.4,3.63124313]
[1755240681761,0.1092,4656.0,4655.9,2.14781245]
[1755240681993,0.1092,4656.0,4655.9,3.12738403]
[1755240682178,0.002,4656.0,4655.9,4.13598403]
[1755240683088,0.002,4656.0,4655.9,4.15746215]
[1755240683413,0.002,4656.0,4655.9,4.13598403]
[1755240684891,1e-08,4656.0,4655.9,4.15746215]
[1755240685188,1e-08,4656.0,4655.9,7.15746215]
[1755240685394,1e-08,4656.0,4655.9,7.13598403]
[1755240686089,1e-08,4656.5,4656.4,2.69758182]
[1755240686398,1e-08,4656.5,4656.4,6.00158182]
[1755240686604,1e-08,4656.5,4656.4,6.10878182]
[1755240686770,1e-08,4656.5,4656.4,7.01018182]
[1755240690116,1e-08,4656.5,4656.4,6.55908182]
[1755240690297,1e-08,4656.5,4656.4,7.42975548]
[1755240690494,1e-08,4656.5,4656.4,7.88085548]
[1755240691415,1e-08,4656.5,4656.4,7.42975548]
[1755240692078,1e-08,4656.5,4656.4,3.67545548]
[1755240692280,1e-08,4656.5,4656.4,6.97845548]
[1755240693814,1e-08,4656.5,4656.4,7.42875548]
[1755240694608,1e-08,4656.5,4656.4,6.97845548]
[1755240694823,1e-08,4656.5,4656.4,3.67545548]
[1755240694990,1e-08,4656.5,4656.4,5.55778182]
[1755240695311,1e-08,4656.5,4656.4,6.55808182]
[1755240696427,1e-08,4656.5,4656.4,6.10778182]
[1755240697306,1e-08,4656.5,4656.4,6.55808182]
[1755240698226,1e-08,4656.5,4656.4,6.10778182]
[1755240698389,1e-08,4656.5,4656.4,6.97835548]
[1755240699917,1e-08,4656.5,4656.4,20.87760417]
[1755240700825,0.002,4656.9,4656.8,2.14739735]
[1755240701014,0.002,4656.9,4656.8,9.70039735]
[1755240701223,0.002,4656.9,4656.8,10.35759735]
[1755240701536,0.97,4656.9,4656.8,11.60810383]
[1755240701716,0.5,4656.9,4656.8,10.35759735]
[1755240702112,0.5,4656.9,4656.8,6.10759735]
[1755240702312,0.97,4656.9,4656.8,6.10759735]
[1755240703106,0.5,4656.9,4656.8,6.10759735]
[1755240705016,0.5,4656.9,4656.8,6.00039735]
[1755240706498,0.002,4656.9,4656.8,6.00039735]
[1755240706940,0.002,4656.9,4656.8,6.32063802]
[1755240711032,0.002,4656.9,4656.8,6.77093802]
[1755240711234,0.002,4656.9,4656.8,6.32063802]
[1755240711436,0.002,4656.9,4656.8,6.77093802]
[1755240712037,0.002,4656.9,4656.8,6.78203802]
[1755240712240,0.002,4656.9,4656.8,6.32063802]
[1755240712437,0.002,4657.6,4657.3,0.55]
[1755240712638,0.002,4657.6,4657.4,3.8734712]
[1755240712839,0.002,4657.6,4657.4,6.48199191]
[1755240713003,0.002,4657.6,4657.4,6.46052071]
[1755240715812,0.002,4657.6,4657.4,5.99912071]
[1755240716144,0.002,4657.6,4657.4,4.85664692]
[1755240716332,0.002,4657.6,4657.4,5.99912071]
[1755240716724,0.4825,4657.5,4657.4,5.99912071]
[1755240716919,0.9373,4657.5,4657.4,2.69712071]
[1755240717235,0.9373,4657.5,4657.4,5.99912071]
[1755240718139,0.002,4657.5,4657.4,5.99912071]
[1755240718343,0.002,4657.5,4657.4,6.81375205]
[1755240719541,0.4825,4657.5,4657.4,5.44912071]
[1755240719747,0.4825,4657.5,4657.4,5.44812071]
[1755240721435,0.002,4657.5,4657.4,5.99812071]
[1755240723629,0.002,4657.5,4657.4,6.45952071]
[1755240724442,0.002,4657.5,4657.4,5.99812071]
[1755240724636,0.002,4657.5,4657.4,6.86951312]
[1755240728454,0.4825,4657.5,4657.4,6.86951312]
[1755240728636,0.4825,4657.5,4657.4,5.99812071]
[1755240729236,0.9373,4657.5,4657.4,2.69712071]
[1755240730344,0.9373,4657.5,4657.4,2.14712071]
[1755240730727,0.9373,4657.5,4657.2,0.55]
[1755240730923,0.002,4657.5,4657.4,2.14712071]
[1755240731128,0.4825,4657.5,4657.4,2.14712071]
[1755240731328,0.9373,4657.5,4657.4,2.14712071]
[1755240734072,0.002,4657.5,4657.4,2.14712071]
[1755240734273,0.002,4657.5,4657.4,3.07014498]
[1755240734476,0.002,4657.5,4657.4,2.62999191]
[1755240734770,0.002,4657.5,4657.4,2.60852071]
[1755240734949,0.002,4657.5,4657.4,2.14712071]
[1755240735373,0.4825,4657.5,4657.4,2.14712071]
[1755240738274,0.9373,4657.5,4657.4,2.14712071]
[1755240738681,0.4825,4657.5,4657.4,2.14712071]
[1755240739056,0.4825,4657.5,4657.1,2.25544225]
[1755240739383,0.4805,4657.4,4657.1,2.14824225]
[1755240739546,0.4805,4657.3,4657.1,2.14825219]
[1755240739747,0.4548,4657.4,4657.1,2.14825219]
[1755240739748,0.4548,4657.4,4657.2,2.14721291]
[1755240740180,0.4548,4657.4,4657.1,0.001]
[1755240740346,0.4805,4657.3,4657.1,0.001]
[1755240741278,0.002,4657.5,4657.2,2.14721291]
[1755240741578,0.4805,4657.4,4657.3,2.14716232]
[1755240742481,0.002,4657.5,4657.4,2.14712071]
[1755240744053,0.002,4657.5,4657.4,2.62122071]
[1755240744587,0.002,4657.5,4657.4,2.64269191]
[1755240744770,0.002,4657.5,4657.4,3.75248744]
[1755240744979,0.002,4657.5,4657.4,7.05248744]
[1755240745279,0.002,4657.5,4657.4,7.03101624]
[1755240746058,0.002,4657.5,4657.4,5.92122071]
[1755240747379,0.002,4657.5,4657.4,5.99712071]
[1755240747580,0.002,4657.5,4657.4,6.47122071]
[1755240749886,0.002,4657.5,4657.4,2.69712071]
[1755240750087,0.002,4657.5,4657.4,5.99612071]
[1755240751715,0.002,4657.5,4657.4,7.29537188]
[1755240755902,0.002,4657.5,4657.4,3.52227188]
[1755240756285,0.002,4657.5,4657.4,2.69712071]
[1755240757830,0.4862,4657.5,4657.4,2.69712071]
[1755240758329,0.4862,4657.5,4657.4,2.14712071]
[1755240760520,0.002,4657.5,4657.4,2.14712071]
[1755240760891,0.002,4657.5,4657.4,2.16859191]
[1755240761941,0.002,4657.5,4657.4,3.17122071]
[1755240762174,0.002,4657.5,4657.4,5.39715595]
[1755240762310,0.002,4657.5,4657.4,5.86388475]
[1755240762644,0.002,4657.5,4657.4,5.37568475]
[1755240762950,0.002,4657.9,4657.4,5.37568475]
[1755240762951,0.002,4657.9,4657.7,0.55]
[1755240763154,0.002,4657.9,4657.8,19.71358566]
[1755240763535,0.002,4657.9,4657.8,19.82078566]
[1755240763717,0.002,4657.9,4657.8,20.29488566]
[1755240765448,0.002,4657.9,4657.8,19.82078566]
[1755240766455,0.002,4657.9,4657.8,20.29488566]
[1755240766811,0.002,4657.9,4657.8,19.82078566]
[1755240768119,0.002,4657.9,4657.8,20.29488566]
[1755240769224,0.002,4657.9,4657.8,19.82078566]
[1755240769834,0.002,4657.9,4657.8,6.37083697]
[1755240770031,0.002,4657.9,4657.8,2.25413632]
[1755240770220,0.4862,4657.9,4657.8,5.44393632]
[1755240770436,0.002,4657.9,4657.8,5.99393632]
[1755240770860,0.002,4657.9,4657.8,19.91698501]
[1755240771157,0.002,4657.9,4657.8,22.12144905]
[1755240772617,0.002,4657.9,4657.8,21.64734905]
[1755240772817,0.002,4657.9,4657.8,22.11094905]
[1755240773021,0.002,4657.9,4657.8,22.60134905]
[1755240773962,0.002,4658.5,4658.2,2.14675196]
[1755240774269,0.002,4658.9,4658.7,0.55]
[1755240774436,0.002,4658.9,4658.8,5.57214023]
[1755240774634,0.002,4658.9,4658.8,6.01427548]
[1755240774833,0.002,4658.9,4658.8,6.56427548]
[1755240775032,0.002,4658.9,4658.8,7.49035769]
[1755240776047,1e-08,4659.0,4658.9,2.69642941]
[1755240776250,0.57050001,4660.3,4659.3,0.55]
[1755240776251,1e-08,4659.4,4659.3,0.55]
[1755240776449,1e-08,4659.4,4659.3,6.338905]
[1755240776692,1e-08,4660.3,4660.2,16.14477934]
[1755240776899,1e-08,4660.3,4660.2,19.54897934]
[1755240777199,1e-08,4660.3,4660.2,20.01257934]
[1755240777559,1e-08,4660.3,4660.2,20.50297934]
[1755240777760,1e-08,4660.3,4660.2,22.70744338]
[1755240778065,1e-08,4660.3,4660.2,8.30349469]
[1755240778379,1e-08,4660.3,4660.2,6.56263065]
[1755240779256,1e-08,4660.3,4660.2,6.09903065]
[1755240780559,1e-08,4660.3,4660.2,6.56263065]
[1755240780762,1e-08,4660.5,4660.4,2.69573856]
[1755240780960,0.4633,4662.6,4660.8,3.55]
[1755240781160,2.14409639,4664.0,4660.7,2.14560044]
[1755240781161,0.4633,4662.2,4661.8,0.55]
[1755240781360,0.8999,4662.1,4662.0,2.14496411]
[1755240781560,0.8999,4662.1,4661.4,13.99894869]
[1755240781561,0.8999,4662.1,4661.4,3.296]
[1755240781774,13.44894869,4663.7,4661.2,3.296]
[1755240781775,0.1072,4661.7,4661.2,3.296]
[1755240781980,0.1072,4661.7,4661.4,2.14525944]
[1755240782179,0.5438,4661.7,4661.4,2.14525944]
[1755240782377,0.8999,4661.6,4661.4,2.14525944]
[1755240782587,0.8999,4661.5,4661.2,2.1453421]
[1755240782793,0.8999,4661.5,4661.3,2.14531533]
[1755240783095,0.4633,4661.4,4661.3,2.14531533]
[1755240784189,0.002,4661.5,4660.8,5.44054349]
[1755240784495,0.8999,4661.4,4660.8,0.1072]
[1755240784695,0.4366,4661.4,4660.8,0.1072]
[1755240784898,0.4633,4661.3,4660.8,0.1072]
[1755240785264,0.4366,4661.2,4660.8,0.1072]
[1755240785589,0.4366,4661.2,4660.9,2.14550837]
[1755240785788,0.002,4661.5,4660.8,0.1072]
[1755240785991,0.8999,4661.1,4660.8,0.1072]
[1755240786180,0.4633,4661.0,4660.9,2.14550837]
[1755240787180,0.4386,4661.5,4661.2,2.14533019]
[1755240787181,0.41017613,4661.5,4661.2,2.14533019]
[1755240787509,0.4633,4661.3,4661.2,2.14533019]
[1755240787908,0.1072,4661.5,4661.4,2.14527824]
[1755240788078,0.5705,4661.5,4661.4,2.14527824]
[1755240788986,0.5705,4661.5,4660.9,0.55]
[1755240789310,0.4366,4661.4,4661.1,2.14541128]
[1755240789509,0.8999,4661.3,4661.2,2.14537025]
[1755240789722,0.4633,4661.3,4661.2,2.14537025]
[1755240793180,0.1072,4661.5,4661.4,2.14527824]
[1755240793381,0.1072,4661.5,4661.4,2.57434769]
[1755240793597,0.1072,4661.5,4661.4,3.12434769]
[1755240793912,0.4653,4662.0,4661.7,0.55]
[1755240794106,0.002,4662.0,4661.7,0.55]
[1755240794307,0.8999,4661.9,4661.7,0.55]
[1755240794481,0.4633,4661.8,4661.7,0.55]
[1755240794813,0.4633,4661.8,4661.7,2.69514018]
[1755240795186,0.4633,4661.8,4661.7,0.55]
[1755240795390,0.4633,4661.8,4661.7,2.69514018]
[1755240795799,0.002,4662.0,4661.7,0.55]
[1755240795998,0.4633,4661.9,4661.7,0.55]
[1755240796201,0.4633,4661.8,4661.4,0.1072]
[1755240796403,0.8999,4661.7,4661.1,2.14537516]
[1755240796578,0.4366,4661.7,4661.2,2.14536732]
[1755240796911,0.4366,4661.7,4660.9,3.4012]
[1755240796912,0.8999,4661.6,4660.9,5.54670448]
[1755240797210,0.8999,4661.6,4661.3,2.14532072]
[1755240797615,0.4633,4661.5,4661.3,2.14532072]
[1755240797922,0.4633,4661.4,4661.2,2.14536753]
[1755240798115,0.4633,4661.3,4661.2,2.14536753]
[1755240799419,0.8999,4661.3,4660.9,0.1072]
[1755240799710,0.8999,4661.2,4660.9,0.1072]
[1755240799917,0.8999,4661.2,4660.6,2.14564053]
[1755240800104,0.8999,4661.2,4660.1,0.4636]
[1755240800105,0.8999,4661.2,4660.5,2.14569082]
[1755240800303,0.4633,4661.1,4660.5,2.14569082]
[1755240800691,0.4633,4661.1,4660.1,2.60945104]
[1755240800692,0.4633,4661.1,4660.4,2.14573277]
[1755240800897,0.4633,4661.1,4660.8,0.001]
[1755240801132,0.8999,4661.0,4660.8,0.001]
[1755240801522,0.8999,4660.9,4660.8,0.001]
[1755240802831,0.4633,4660.9,4660.8,0.001]
[1755240803006,2.14536693,4661.3,4660.8,0.001]
[1755240803213,0.4719,4660.9,4660.8,0.001]
[1755240803734,0.927,4660.9,4660.8,0.001]
[1755240806103,3.08367118,4660.9,4660.8,0.001]
[1755240806410,3.07250837,4660.9,4660.8,0.001]
[1755240806611,12.50480818,4660.9,4660.8,0.001]
[1755240806825,12.9560889,4660.9,4660.8,0.001]
[1755240807439,16.2490889,4660.9,4660.8,0.001]
[1755240808111,12.9560889,4660.9,4660.8,0.001]
[1755240808304,16.2490889,4660.9,4660.8,0.001]
[1755240808932,3.0,4660.8,4659.8,0.001]
[1755240809133,2.14596879,4659.9,4659.8,0.001]
[1755240809337,5.4501316,4659.9,4659.8,0.001]
[1755240809541,9.82755306,4659.9,4659.8,0.001]
[1755240809906,9.93475306,4659.9,4659.8,0.001]
[1755240810343,9.47316879,4659.9,4659.8,0.001]
[1755240810743,10.02041457,4659.9,4659.8,0.001]
[1755240810927,16.60418302,4659.9,4659.8,0.001]
[1755240812021,13.31118302,4659.9,4659.8,0.001]
[1755240812209,16.14395624,4659.9,4659.8,0.001]
[1755240812637,15.98132479,4659.9,4659.8,0.001]
[1755240814443,15.89530579,4659.9,4659.8,0.001]
[1755240815012,9.47416879,4659.9,4659.8,0.001]
[1755240815213,15.89530579,4659.9,4659.8,0.001]
[1755240817829,2.14615302,4659.5,4659.3,1e-08]
[1755240818030,28.32144758,4659.4,4659.3,1e-08]
[1755240818230,29.34448477,4659.4,4659.3,1e-08]
[1755240818773,15.89553608,4659.4,4659.3,1e-08]
[1755240819267,15.98157008,4659.4,4659.3,1e-08]
[1755240820835,12.68757008,4659.4,4659.3,1e-08]
[1755240821166,15.98157008,4659.4,4659.3,1e-08]
[1755240823590,29.43051877,4659.4,4659.3,1e-08]
[1755240824954,15.52647008,4659.4,4659.3,1e-08]
[1755240825481,15.92317008,4659.4,4659.3,1e-08]
[1755240826383,16.38260898,4659.4,4659.3,1e-08]
[1755240828559,16.38260898,4659.4,4658.4,0.001]
[1755240828560,2.14661371,4658.5,4658.4,0.001]
[1755240828772,14.86275071,4658.5,4658.4,0.001]
[1755240828980,11.56775071,4658.5,4658.4,0.001]
[1755240829168,8.44161371,4658.5,4658.4,0.001]
[1755240829374,15.32275495,4658.5,4658.4,0.001]
[1755240829590,15.79465495,4658.5,4658.4,0.001]
[1755240831391,16.24975495,4658.5,4658.4,0.001]
[1755240831590,15.79465495,4658.5,4658.4,0.001]
[1755240831792,16.25605495,4658.5,4658.4,0.001]
[1755240832298,15.79465495,4658.5,4658.4,0.001]
[1755240833077,12.02775495,4658.5,4658.4,0.001]
[1755240833299,15.32275495,4658.5,4658.4,0.4367]
[1755240833708,12.02775495,4658.5,4658.4,0.001]
[1755240833869,15.32275495,4658.5,4658.4,0.4367]
[1755240834604,15.32275495,4658.5,4658.4,0.001]
[1755240835099,15.79475495,4658.5,4658.4,0.001]
[1755240835298,15.79475495,4658.5,4657.6,0.001]
[1755240835299,2.14698241,4657.7,4657.6,0.001]
[1755240835514,5.14698241,4657.7,4657.6,0.001]
[1755240835701,8.44198241,4657.7,4657.6,0.001]
[1755240835908,8.90198665,4657.7,4657.6,0.001]
[1755240836986,8.90198665,4657.7,4657.6,0.4367]
[1755240838220,8.90198665,4657.7,4657.6,0.9281]
[1755240838403,9.00918665,4657.7,4657.6,0.9281]
[1755240839031,9.00918665,4657.7,4657.6,0.4367]
[1755240840585,9.00918665,4657.7,4657.6,0.001]
[1755240841295,9.48118665,4657.7,4657.6,0.001]
[1755240842090,5.71418665,4657.7,4657.6,0.001]
[1755240842296,9.00918665,4657.7,4657.6,0.4367]
[1755240842517,5.71418665,4657.7,4657.6,0.4367]
[1755240842813,9.00918665,4657.7,4657.6,0.4367]
[1755240844404,3.56720424,4657.7,4657.6,0.4367]
[1755240844598,9.00918665,4657.7,4657.6,0.9281]
[1755240844838,6.86220424,4657.7,4657.6,0.9281]
[1755240845315,3.4022,4657.7,4657.6,0.9281]
[1755240845535,3.4022,4657.7,4657.6,1.23562484]
[1755240845732,0.1072,4657.7,4657.6,0.9281]
[1755240846217,0.1072,4657.7,4657.6,3.09659879]
[1755240846399,3.295,4657.7,4657.6,3.09659879]
[1755240846602,3.295,4657.7,4657.6,0.9281]
[1755240849545,3.295,4657.7,4657.6,0.4367]
[1755240849719,3.295,4657.7,4657.6,0.9281]
[1755240850843,3.295,4657.7,4657.6,0.4367]
[1755240853631,0.1072,4657.9,4657.6,0.4367]
[1755240853835,3.295,4657.8,4657.7,2.63838241]
[1755240854036,3.295,4657.8,4657.7,4.94118765]
[1755240854743,0.002,4658.4,4658.0,2.14681171]
[1755240854946,0.002,4658.4,4658.1,2.14679805]
[1755240855256,3.294,4658.3,4658.2,2.14675196]
[1755240855425,0.002,4658.4,4658.3,2.14670587]
[1755240855626,3.296,4658.4,4658.3,4.72608133]
[1755240856558,0.002,4658.4,4658.3,4.72608133]
[1755240856759,3.296,4658.4,4658.3,4.72608133]
[1755240856961,3.296,4658.4,4658.3,3.07380587]
[1755240857456,3.296,4658.4,4658.3,2.58240587]
[1755240857660,3.296,4658.4,4658.3,0.4357]
[1755240859635,3.296,4658.4,4658.3,2.58240587]
[1755240860234,0.002,4658.4,4658.3,2.58240587]
[1755240860565,3.296,4658.4,4658.1,2.1467588]
[1755240860740,3.296,4658.4,4657.9,0.5429]
[1755240860948,3.296,4658.4,4657.6,0.001]
[1755240860949,3.294,4658.3,4658.2,2.14670709]
[1755240861764,3.294,4658.3,4658.2,2.58240709]
[1755240861972,3.294,4658.3,4658.2,0.4357]
[1755240862179,3.294,4658.3,4658.0,2.14680732]
[1755240862384,3.294,4658.3,4658.1,2.14678544]
[1755240862749,3.294,4658.3,4658.1,2.58198544]
[1755240863046,3.294,4658.3,4657.9,2.14684979]
[1755240863247,0.1092,4658.4,4658.0,2.14683993]
[1755240863449,0.1092,4658.4,4658.2,2.14673768]
[1755240863887,0.1092,4658.4,4658.3,0.4352]
[1755240866383,0.1092,4658.4,4658.0,2.58203873]
[1755240866587,0.1092,4658.4,4658.1,2.58198157]
[1755240867684,0.1092,4658.4,4658.2,0.4352]
[1755240868754,0.1092,4658.4,4657.9,2.14685336]
[1755240869254,0.6063,4658.4,4657.9,2.14685336]
[1755240870289,0.50826281,4658.3,4657.6,0.001]
[1755240870487,0.1072,4657.8,4657.6,0.001]
[1755240870796,3.293,4657.7,4657.6,0.001]
[1755240871163,3.7901,4657.7,4657.6,0.001]
[1755240871378,4.2368,4657.7,4657.6,0.001]
[1755240871883,6.38378241,4657.7,4657.6,0.001]
[1755240874680,6.46982941,4657.7,4657.6,0.001]
[1755240874992,3.17682941,4657.7,4657.6,0.001]
[1755240875178,6.46982941,4657.7,4657.6,0.001]
[1755240875990,6.02312941,4657.7,4657.6,0.001]
[1755240876561,6.46982941,4657.7,4657.6,0.001]
[1755240878497,0.086047,4657.7,4657.6,0.001]
[1755240878712,3.293,4657.7,4657.6,0.001]
[1755240879197,3.4002,4657.7,4657.6,0.001]
[1755240884290,0.1072,4658.1,4657.6,0.001]
[1755240884490,0.1072,4657.7,4657.6,0.4362]
[1755240884691,3.4002,4657.7,4657.6,0.4362]
[1755240885524,3.4002,4657.7,4657.6,0.001]
[1755240885728,3.90846281,4657.7,4657.6,0.001]
[1755240886119,4.35516281,4657.7,4657.6,0.001]
[1755240886332,4.344,4657.7,4657.6,0.001]
[1755240886823,6.49098241,4657.7,4657.6,0.001]
[1755240887624,9.49098241,4657.7,4657.6,0.001]
[1755240888692,15.91211941,4657.7,4657.6,0.001]
[1755240893052,15.46541941,4657.7,4657.6,0.001]
[1755240893537,11.67531941,4657.7,4657.6,0.001]
[1755240893745,0.086047,4657.9,4657.8,2.14693632]
[1755240894040,0.1072,4658.0,4657.9,2.14689022]
[1755240894208,0.002,4658.4,4658.2,2.14671996]
[1755240894535,3.4002,4658.3,4658.2,2.14671996]
[1755240894929,3.4002,4658.3,4658.2,3.10171996]
[1755240895402,3.4002,4658.3,4658.2,0.955]
[1755240895606,3.4002,4658.3,4658.2,0.4575]
[1755240896239,3.4002,4658.3,4658.2,0.955]
[1755240896426,3.4002,4658.3,4658.2,0.255]
[1755240896625,3.4002,4658.3,4657.7,2.14696217]
[1755240896941,3.4002,4658.3,4657.8,2.36171482]
[1755240897138,3.4002,4658.3,4658.1,2.14676845]
[1755240897705,3.4002,4658.3,4657.8,0.21479622]
[1755240898210,3.4002,4658.3,4657.9,2.14689022]
[1755240899143,3.4002,4658.3,4657.8,2.14693381]
[1755240899442,3.4002,4658.3,4657.8,2.60443381]
[1755240899646,3.7584,4658.3,4657.6,0.001]
[1755240899846,0.1072,4657.9,4657.7,2.14697251]
[1755240900052,3.292,4657.8,4657.7,2.14697251]
[1755240900252,3.292,4657.8,4657.7,2.60447251]
[1755240903018,0.1072,4657.9,4657.7,1.19035338]
[1755240903335,0.1072,4657.9,4657.8,0.4575]
[1755240903535,0.1072,4657.9,4657.8,2.60443632]
[1755240903730,3.3992,4658.2,4658.0,2.14680784]
[1755240904252,3.3992,4658.2,4658.1,0.4575]
[1755240904425,3.3992,4658.2,4657.9,2.14688395]
[1755240904634,3.3992,4658.2,4657.6,2.25520432]
[1755240904635,3.3992,4658.2,4658.0,2.60433708]
[1755240904960,3.3992,4658.2,4658.1,2.14679805]
[1755240905256,3.3992,4658.2,4658.1,0.4575]
[1755240905956,3.3992,4658.2,4658.0,2.14683669]
[1755240906249,3.3992,4658.2,4658.1,2.14679805]
[1755240906415,0.002,4658.4,4658.3,2.14670587]
[1755240906856,0.002,4658.4,4658.3,2.60420587]
[1755240907252,0.002,4658.4,4657.6,0.4585]
[1755240907459,0.1092,4658.4,4658.1,2.14675964]
[1755240907644,0.1092,4658.4,4658.2,2.14674592]
[1755240908968,0.1092,4658.4,4657.7,0.1072]
[1755240909272,0.5746,4658.4,4658.1,2.14675937]
[1755240909786,0.5746,4658.4,4658.1,2.14678821]
[1755240910179,0.5746,4658.4,4658.2,2.14674841]
[1755240910849,0.5746,4658.4,4658.0,2.14681656]
[1755240911172,0.5746,4658.4,4658.0,2.14683918]
[1755240911365,0.5746,4658.4,4658.1,2.14679319]
[1755240911763,0.5746,4658.4,4657.9,2.1468517]
[1755240911975,0.5746,4658.4,4658.0,2.14682431]
[1755240912184,0.5746,4658.4,4658.0,2.14684306]
[1755240912795,0.5746,4658.4,4658.1,2.14679395]
[1755240913791,0.5746,4658.4,4657.9,2.14684509]
[1755240914000,0.5746,4658.4,4657.7,2.25417714]
[1755240914496,0.5746,4658.4,4657.9,2.14684905]
[1755240915899,3.291,4658.3,4657.9,2.14684905]
[1755240916106,3.291,4658.3,4657.7,0.1072]
[1755240916269,3.291,4658.3,4657.8,2.14689588]
[1755240916591,3.7564,4658.3,4657.9,2.14687942]
[1755240916767,3.7564,4658.3,4657.7,0.1072]
[1755240916959,3.7564,4658.3,4657.6,0.001]
[1755240916960,0.1072,4657.8,4657.6,0.001]
[1755240917164,5.43798241,4657.7,4657.6,0.001]
[1755240917368,9.37828241,4657.7,4657.6,0.001]
[1755240922298,15.79941941,4657.7,4657.6,0.001]
[1755240923196,9.37828241,4657.7,4657.6,0.001]
[1755240923540,15.79941941,4657.7,4657.6,0.001]
[1755240923741,11.56811941,4657.7,4657.6,0.001]
[1755240924042,15.77371941,4657.7,4657.6,0.001]
[1755240924701,16.27371941,4657.7,4657.6,0.001]
[1755240925611,6.791,4657.7,4657.6,0.001]
[1755240925819,6.8982,4657.7,4657.6,0.001]
[1755240926442,9.04518241,4657.7,4657.6,0.001]
[1755240926955,9.51078241,4657.7,4657.6,0.001]
[1755240928742,4.0728,4657.7,4657.6,0.001]
[1755240928910,3.8982,4657.7,4657.6,0.001]
[1755240929114,0.6072,4657.7,4657.6,2.14802851]
[1755240929349,0.6072,4657.7,4657.6,1.89664222]
[1755240929350,3.3982,4657.7,4657.6,1.89664222]
[1755240929762,3.3982,4657.7,4657.6,0.4512]
[1755240929916,3.3982,4657.7,4657.6,0.001]
[1755240933460,0.1072,4657.7,4657.6,0.001]